[Event "Moscow Rapid-ch 2018"]
[Site "Moscow"]
[Date "2018.12.08"]
[Round "2"]
[White "Dvalishvili, Pavel S."]
[Black "Tsvetkov, Andrey"]
[Result "1-0"]
[ECO "B20"]
[WhiteElo "2396"]
[BlackElo "2338"]
[Annotator "NA"]
[PlyCount "41"]
[EventDate "2018.12.08"]
[EventType "swiss"]
[EventCountry "RUS"]
[SourceTitle "playchess.com"]
[Source "ChessBase"]
[SourceQuality "1"]
[TimeControl "900+10"]

1. e4 {[%emt 0:00:00]} c5 {[%emt 0:00:00]} 2. b3 {[%emt 0:00:02]} g6 {[%emt 0:00:00]} 3. Bb2 {[%emt 0:00:00]} Nf6 {[%emt 0:00:00]} 4. Qf3 {[%emt 0:00:00]} d6 {[%emt 0:00:00]} 5. Bb5+ {[%emt 0:00:00]} Nbd7 {[%emt 0:00:19]} 6. Bxf6 {[%emt 0:01:26]} exf6 {[%emt 0:00:02]} 7. Nc3 {[%emt 0:00:01]} Bg7 {[%emt 0:00:04]} 8. Qg3 {[%emt 0:00:02]} Qe7 {[%emt 0:03:29]} 9. Nge2 {[%emt 0:00:31]} O-O {[%emt 0:00:19]} 10. O-O {[%emt 0:00:03]} Nb6 {[%emt 0:02:01]} 11. Rfe1 {[%emt 0:00:43]} Qd8 {[%emt 0:01:04]} 12. a4 {[%emt 0:01:03]} a6 {[%emt 0:01:14]} 13. Bd3 {[%emt 0:00:01]} d5 {[%emt 0:00:41]} 14. exd5 {[%emt 0:00:17]} Nxd5 {[%emt 0:00:11]} 15. Nxd5 {[%emt 0:00:01]} Qxd5 {[%emt 0:00:03]} 16. Nc3 {[%emt 0:00:01]} Qd8 {[%emt 0:00:28]} 17. Qe3 {[%emt 0:00:33]} Qa5 {[%emt 0:01:55]} 18. Qe7 {[%emt 0:02:04]} Be6 {[%emt 0:02:44]} 19. Qxb7 {[%emt 0:00:04]} f5 {[%emt 0:00:01]} 20. Rac1 {[%emt 0:04:06]} Rfb8 {[%emt 0:01:08]} 21. Qf3 {[%emt 0:00:01]} 1-0

[Event "Moscow Rapid-ch 2018"]
[Site "Moscow"]
[Date "2018.12.08"]
[Round "2"]
[White "Dragomarezkij, Evgeni"]
[Black "Pavlov, Danila"]
[Result "1-0"]
[ECO "E87"]
[WhiteElo "2385"]
[BlackElo "2323"]
[Annotator "NA"]
[PlyCount "80"]
[EventDate "2018.12.08"]
[EventType "swiss"]
[EventCountry "RUS"]
[SourceTitle "playchess.com"]
[Source "ChessBase"]
[SourceQuality "1"]
[TimeControl "900+10"]

1. c4 {[%emt 0:00:00]} Nf6 {[%emt 0:00:00]} 2. Nc3 {[%emt 0:00:00]} g6 {[%emt 0:00:00]} 3. e4 {[%emt 0:00:00]} d6 {[%emt 0:00:00]} 4. d4 {[%emt 0:00:00]} Bg7 {[%emt 0:00:00]} 5. f3 {[%emt 0:00:00]} O-O {[%emt 0:00:00]} 6. Be3 {[%emt 0:00:00]} e5 {[%emt 0:00:00]} 7. d5 {[%emt 0:00:00]} a5 {[%emt 0:00:00]} 8. Bd3 {[%emt 0:00:00]} Na6 {[%emt 0:00:00]} 9. Nge2 {[%emt 0:00:00]} c6 {[%emt 0:00:25]} 10. O-O {[%emt 0:00:09]} cxd5 {[%emt 0:00:02]} 11. cxd5 {[%emt 0:00:04]} Nd7 {[%emt 0:00:12]} 12. a3 {[%emt 0:01:18]} Ndc5 {[%emt 0:01:25]} 13. Bc2 {[%emt 0:00:03]} Bd7 {[%emt 0:00:09]} 14. Rb1 {[%emt 0:00:02]} b5 {[%emt 0:03:01]} 15. b4 {[%emt 0:00:06]} axb4 16. axb4 {[%emt 0:00:02]} Na4 {[%emt 0:00:57]} 17. Nxa4 {[%emt 0:00:52]} bxa4 {[%emt 0:00:14]} 18. Bxa4 {[%emt 0:00:11]} Nc7 {[%emt 0:00:31]} 19. Bc6 {[%emt 0:00:12]} Bxc6 {[%emt 0:00:56]} 20. dxc6 {[%emt 0:00:02]} d5 {[%emt 0:00:01]} 21. Bc5 {[%emt 0:00:06]} Re8 {[%emt 0:00:06]} 22. Bb6 {[%emt 0:02:14]} d4 {[%emt 0:00:24]} 23. Qb3 {[%emt 0:00:36]} Rb8 {[%emt 0:01:46]} 24. Bxc7 {[%emt 0:03:00]} Qxc7 {[%emt 0:00:01]} 25. b5 {[%emt 0:00:08]} Rec8 {[%emt 0:01:25]} 26. Rfc1 {[%emt 0:00:55]} Qb6 {[%emt 0:00:16]} 27. Kh1 {[%emt 0:00:23]} Bh6 {[%emt 0:00:02]} 28. Rc4 {[%emt 0:01:01]} Ra8 {[%emt 0:00:11]} 29. Nc1 {[%emt 0:00:47]} Bf8 {[%emt 0:00:35]} 30. Nd3 {[%emt 0:00:11]} Ra3 {[%emt 0:00:01]} 31. Qc2 {[%emt 0:00:15]} Bd6 {[%emt 0:00:03]} 32. h3 {[%emt 0:01:03]} Ra5 {[%emt 0:01:13]} 33. Qb2 {[%emt 0:00:58]} Rb8 {[%emt 0:00:35]} 34. f4 {[%emt 0:00:32]} f6 {[%emt 0:03:20]} 35. fxe5 fxe5 {[%emt 0:00:01]} 36. Qb3 {[%emt 0:00:07]} Kg7 {[%emt 0:01:22]} 37. Rcc1 {[%emt 0:00:57]} Bc7 {[%emt 0:00:18]} 38. Rc5 {[%emt 0:00:27]} Bd6 {[%emt 0:00:10]} 39. Rd5 {[%emt 0:00:17]} Ra3 {[%emt 0:00:01]} 40. Qd1 {[%emt 0:00:15]} Rd8 {[%emt 0:01:08]} 1-0

[Event "Moscow Rapid-ch 2018"]
[Site "Moscow"]
[Date "2018.12.08"]
[Round "2"]
[White "Strutinskaia, Galina"]
[Black "Glibka, Yulia"]
[Result "1-0"]
[ECO "A01"]
[WhiteElo "2201"]
[BlackElo "1979"]
[Annotator "NA"]
[PlyCount "59"]
[EventDate "2018.12.08"]
[EventType "swiss"]
[EventCountry "RUS"]
[SourceTitle "playchess.com"]
[Source "ChessBase"]
[SourceQuality "1"]
[TimeControl "900+10"]

1. b3 {[%emt 0:00:00]} e5 {[%emt 0:00:08]} 2. Bb2 {[%emt 0:00:00]} Nc6 {[%emt 0:00:02]} 3. e3 {[%emt 0:00:00]} Nf6 {[%emt 0:00:09]} 4. Bb5 {[%emt 0:00:00]} d6 {[%emt 0:00:06]} 5. d4 {[%emt 0:00:06]} exd4 {[%emt 0:00:35]} 6. Bxd4 {[%emt 0:00:14]} Bd7 {[%emt 0:00:10]} 7. Bb2 {[%emt 0:00:06]} Ne5 {[%emt 0:00:32]} 8. Be2 {[%emt 0:00:03]} Bc6 {[%emt 0:00:03]} 9. Nf3 {[%emt 0:00:21]} Ng6 {[%emt 0:01:16]} 10. c4 {[%emt 0:00:20]} d5 {[%emt 0:03:55]} 11. Nd4 {[%emt 0:00:16]} Bb4+ {[%emt 0:01:28]} 12. Bc3 {[%emt 0:00:10]} Qd6 {[%emt 0:01:05]} 13. Nxc6 {[%emt 0:02:06]} bxc6 {[%emt 0:00:47]} 14. O-O {[%emt 0:00:17]} Bxc3 {[%emt 0:00:46]} 15. Nxc3 {[%emt 0:00:02]} O-O {[%emt 0:00:05]} 16. Qc2 {[%emt 0:00:26]} dxc4 {[%emt 0:02:12]} 17. bxc4 Qe6 {[%emt 0:00:53]} 18. Rfd1 {[%emt 0:02:06]} Ne5 {[%emt 0:00:58]} 19. Ne4 {[%emt 0:01:01]} Nxe4 {[%emt 0:00:38]} 20. Qxe4 {[%emt 0:00:02]} f5 {[%emt 0:00:05]} 21. Qd4 {[%emt 0:00:24]} f4 {[%emt 0:01:07]} 22. exf4 {[%emt 0:00:20]} Ng6 {[%emt 0:00:01]} 23. Qe3 {[%emt 0:00:07]} Rae8 {[%emt 0:00:06]} 24. Qxe6+ {[%emt 0:00:09]} Rxe6 {[%emt 0:00:03]} 25. Bg4 {[%emt 0:00:01]} Re4 {[%emt 0:01:24]} 26. g3 {[%emt 0:00:03]} Kf7 {[%emt 0:00:08]} 27. Rd7+ {[%emt 0:00:41]} Re7 {[%emt 0:00:08]} 28. Rb1 {[%emt 0:00:47]} Rfe8 {[%emt 0:00:30]} 29. Rb7 {[%emt 0:00:11]} Nf8 {[%emt 0:00:14]} 30. Rdxc7 {[%emt 0:00:05]} 1-0

[Event "Moscow Rapid-ch 2018"]
[Site "Moscow"]
[Date "2018.12.08"]
[Round "2"]
[White "Chudinovskikh, Alexander M"]
[Black "Tarasov, Danila"]
[Result "1-0"]
[ECO "B31"]
[WhiteElo "2184"]
[BlackElo "1885"]
[Annotator "NA"]
[PlyCount "125"]
[EventDate "2018.12.08"]
[EventType "swiss"]
[EventCountry "RUS"]
[SourceTitle "playchess.com"]
[Source "ChessBase"]
[SourceQuality "1"]
[TimeControl "900+10"]

1. e4 c5 2. Nf3 Nc6 3. Bb5 g6 4. O-O Bg7 5. c3 Qb6 6. Bc4 e6 7. Re1 d6 8. Na3 Nge7 9. Nb5 Qd8 10. d4 a6 11. Na3 b5 12. Bf1 cxd4 13. cxd4 O-O 14. Nc2 Bb7 15. Bg5 h6 16. Bf4 g5 17. Be3 Ng6 18. g3 Rc8 19. Rc1 Na5 20. Bd2 Nc4 21. Bc3 a5 22. b3 b4 23. Ba1 Nb6 24. a3 bxa3 25. Nxa3 Rxc1 26. Qxc1 Qa8 27. Qe3 f5 28. Nd2 f4 29. Qd3 Qe8 30. Nb5 Nc8 31. Bc3 fxg3 32. hxg3 Qf7 33. Qe3 h5 34. Bxa5 Kh7 35. Nc3 g4 36. Nd1 Nce7 37. Bb4 Nc6 38. Bc3 Bh6 39. Qd3 h4 40. Nc4 Qe7 41. d5 Rf3 42. Nde3 hxg3 43. fxg3 Rxg3+ 44. Bg2 Nce5 45. Bxe5 Nxe5 46. Nxe5 dxe5 47. Qc3 Bc8 48. Nf5 Rxc3 49. Nxe7 Bd7 50. Rf1 Rc1 51. Rxc1 Bxc1 52. Nc6 Be3+ 53. Kf1 exd5 54. exd5 Bxc6 55. dxc6 Bb6 56. Ke2 Kg7 57. Kd3 Kf8 58. Kc4 Ke7 59. Kb5 Bc7 60. Ka6 Kd8 61. Kb7 Ba5 62. b4 Bc7 63. b5 1-0

[Event "Moscow Rapid-ch 2018"]
[Site "Moscow"]
[Date "2018.12.08"]
[Round "2"]
[White "Novikova, Galina"]
[Black "Paramzina, Anastasya"]
[Result "0-1"]
[ECO "B90"]
[WhiteElo "2077"]
[BlackElo "2229"]
[Annotator "NA"]
[PlyCount "76"]
[EventDate "2018.12.08"]
[EventType "swiss"]
[EventCountry "RUS"]
[SourceTitle "playchess.com"]
[Source "ChessBase"]
[SourceQuality "1"]
[TimeControl "900+10"]

1. e4 c5 2. Nf3 d6 3. d4 cxd4 4. Nxd4 Nf6 5. Nc3 a6 6. h3 Nc6 7. g4 Qb6 8. Nb3 e6 9. Be3 Qc7 10. Bg2 b5 11. f4 Bb7 12. Qe2 Be7 13. O-O-O Rc8 14. Kb1 Nd7 15. Qf2 Na5 16. Nxa5 Qxa5 17. g5 Rxc3 18. bxc3 Qxc3 19. Qd2 Qc7 20. h4 h5 21. g6 fxg6 22. Bf3 Kf7 23. Rdg1 Rc8 24. Rg2 Nc5 25. Bxc5 Qxc5 26. Rhg1 Bf6 27. Rxg6 Bc3 28. Qd3 Qa3 29. Rxg7+ Ke8 30. Rg8+ Kd7 31. R1g7+ Kc6 32. e5+ d5 33. Bxd5+ Kb6 34. Rxb7+ Ka5 35. Qxc3+ Qxc3 36. Rxc8 Qxc8 37. Be4 Qc4 38. Bd3 Kb4 0-1

[Event "Moscow Rapid-ch 2018"]
[Site "Moscow"]
[Date "2018.12.08"]
[Round "2"]
[White "Afanasieva, Alexandra"]
[Black "Martynyuk, Elizaveta"]
[Result "1/2-1/2"]
[ECO "B47"]
[WhiteElo "1973"]
[BlackElo "2128"]
[Annotator "NA"]
[PlyCount "49"]
[EventDate "2018.12.08"]
[EventType "swiss"]
[EventCountry "RUS"]
[SourceTitle "playchess.com"]
[Source "ChessBase"]
[SourceQuality "1"]
[TimeControl "900+10"]

1. e4 {[%emt 0:00:00]} c5 {[%emt 0:00:00]} 2. Nf3 {[%emt 0:00:00]} e6 {[%emt 0:00:00]} 3. d4 {[%emt 0:00:00]} cxd4 {[%emt 0:00:00]} 4. Nxd4 {[%emt 0:00:00]} Nc6 {[%emt 0:00:00]} 5. Nc3 {[%emt 0:00:04]} Qc7 {[%emt 0:00:00]} 6. Be2 {[%emt 0:00:04]} a6 {[%emt 0:00:00]} 7. O-O {[%emt 0:00:08]} Nf6 {[%emt 0:00:03]} 8. Be3 {[%emt 0:00:05]} Be7 {[%emt 0:00:02]} 9. f4 {[%emt 0:01:54]} d6 {[%emt 0:00:02]} 10. Kh1 {[%emt 0:00:38]} O-O {[%emt 0:00:05]} 11. Qe1 {[%emt 0:00:21]} Bd7 {[%emt 0:00:03]} 12. Qg3 {[%emt 0:00:41]} Rfe8 {[%emt 0:00:57]} 13. Rae1 {[%emt 0:04:36]} Bf8 {[%emt 0:00:51]} 14. Bd3 {[%emt 0:00:45]} Nb4 {[%emt 0:00:37]} 15. f5 {[%emt 0:04:12]} e5 {[%emt 0:02:48]} 16. Nf3 {[%emt 0:00:10]} b5 {[%emt 0:01:48]} 17. Bg5 {[%emt 0:00:16]} Be7 {[%emt 0:00:25]} 18. a3 {[%emt 0:00:27]} Nxd3 {[%emt 0:00:20]} 19. cxd3 {[%emt 0:00:01]} Bc6 {[%emt 0:00:03]} 20. Bh6 {[%emt 0:00:50]} Bf8 {[%emt 0:00:26]} 21. Bg5 {[%emt 0:00:02]} Be7 {[%emt 0:00:07]} 22. Bh6 {[%emt 0:00:12]} Bf8 {[%emt 0:00:12]} 23. Bg5 {[%emt 0:00:01]} Be7 {[%emt 0:00:02]} 24. Bh6 {[%emt 0:00:48]} Bf8 {[%emt 0:00:20]} 25. Bg5 {[%emt 0:00:29]} 1/2-1/2

[Event "Moscow Rapid-ch 2018"]
[Site "Moscow"]
[Date "2018.12.08"]
[Round "2"]
[White "Vyrtosu, Natalia"]
[Black "Kanevskaya, Anna"]
[Result "1/2-1/2"]
[ECO "A45"]
[WhiteElo "1952"]
[BlackElo "2105"]
[Annotator "NA"]
[PlyCount "36"]
[EventDate "2018.12.08"]
[EventType "swiss"]
[EventCountry "RUS"]
[SourceTitle "playchess.com"]
[Source "ChessBase"]
[SourceQuality "1"]
[TimeControl "900+10"]

1. d4 {[%emt 0:00:00]} Nf6 {[%emt 0:00:00]} 2. Bf4 {[%emt 0:00:00]} c5 {[%emt 0:00:01]} 3. e3 {[%emt 0:00:00]} b6 {[%emt 0:00:40]} 4. Nf3 {[%emt 0:00:20]} Bb7 {[%emt 0:00:03]} 5. c3 {[%emt 0:00:13]} g6 {[%emt 0:00:10]} 6. h3 {[%emt 0:00:22]} Bg7 {[%emt 0:00:01]} 7. Bd3 {[%emt 0:00:27]} O-O {[%emt 0:00:05]} 8. O-O {[%emt 0:00:03]} d6 {[%emt 0:00:02]} 9. Nbd2 {[%emt 0:00:22]} Nbd7 {[%emt 0:00:13]} 10. Qe2 {[%emt 0:00:16]} Re8 {[%emt 0:00:21]} 11. Bh2 {[%emt 0:00:02]} e5 {[%emt 0:00:59]} 12. Ba6 {[%emt 0:00:43]} Bc6 {[%emt 0:00:36]} 13. Bb5 {[%emt 0:00:04]} Bb7 {[%emt 0:01:20]} 14. Ba6 {[%emt 0:02:08]} Bc6 {[%emt 0:00:02]} 15. Bb5 {[%emt 0:00:05]} Bb7 {[%emt 0:00:02]} 16. Ba6 {[%emt 0:00:02]} Bc6 {[%emt 0:00:01]} 17. Bb5 {[%emt 0:00:02]} Bb7 {[%emt 0:00:01]} 18. Ba6 {[%emt 0:00:01]} Bc8 1/2-1/2

[Event "Moscow Rapid-ch 2018"]
[Site "Moscow"]
[Date "2018.12.08"]
[Round "3"]
[White "Gorbatov, Alexej"]
[Black "Gurvich, Vitaly"]
[Result "1/2-1/2"]
[ECO "B10"]
[WhiteElo "2389"]
[BlackElo "2270"]
[Annotator "NA"]
[PlyCount "72"]
[EventDate "2018.12.08"]
[EventType "swiss"]
[EventCountry "RUS"]
[SourceTitle "playchess.com"]
[Source "ChessBase"]
[SourceQuality "1"]
[TimeControl "900+10"]

1. e4 {[%emt 0:00:00]} c6 {[%emt 0:00:00]} 2. Nc3 {[%emt 0:00:00]} d5 {[%emt 0:00:00]} 3. Qf3 {[%emt 0:00:00]} dxe4 {[%emt 0:00:00]} 4. Nxe4 {[%emt 0:00:00]} Nf6 {[%emt 0:00:09]} 5. Nxf6+ {[%emt 0:00:00]} exf6 {[%emt 0:00:02]} 6. Bc4 {[%emt 0:00:02]} Bd6 {[%emt 0:00:06]} 7. Ne2 {[%emt 0:00:07]} O-O {[%emt 0:00:08]} 8. O-O {[%emt 0:00:10]} Nd7 {[%emt 0:00:07]} 9. d4 {[%emt 0:00:02]} Re8 {[%emt 0:00:12]} 10. Bd3 {[%emt 0:02:37]} Nf8 {[%emt 0:00:11]} 11. c3 {[%emt 0:01:14]} Ng6 {[%emt 0:00:10]} 12. Ng3 {[%emt 0:00:33]} Be6 {[%emt 0:02:01]} 13. Nf5 {[%emt 0:00:11]} Bf8 {[%emt 0:00:35]} 14. h4 {[%emt 0:00:14]} Qd5 {[%emt 0:01:12]} 15. Qxd5 {[%emt 0:00:19]} cxd5 {[%emt 0:00:32]} 16. h5 {[%emt 0:00:21]} Bxf5 {[%emt 0:00:22]} 17. Bxf5 {[%emt 0:00:02]} Ne7 {[%emt 0:00:01]} 18. Bg4 {[%emt 0:00:54]} f5 {[%emt 0:01:44]} 19. Bf3 {[%emt 0:00:03]} Rad8 {[%emt 0:00:10]} 20. Re1 {[%emt 0:00:03]} f6 {[%emt 0:00:08]} 21. Bd2 {[%emt 0:00:42]} Kf7 {[%emt 0:00:43]} 22. Re2 {[%emt 0:00:43]} Nc6 {[%emt 0:00:14]} 23. Rae1 {[%emt 0:00:04]} Rxe2 {[%emt 0:00:04]} 24. Rxe2 {[%emt 0:00:02]} b5 {[%emt 0:00:46]} 25. b4 {[%emt 0:01:55]} a5 {[%emt 0:03:21]} 26. a3 {[%emt 0:00:01]} a4 {[%emt 0:00:39]} 27. g3 {[%emt 0:00:36]} Ne7 {[%emt 0:00:17]} 28. Kf1 {[%emt 0:02:29]} g5 {[%emt 0:01:32]} 29. hxg6+ {[%emt 0:02:05]} hxg6 {[%emt 0:00:05]} 30. Ke1 {[%emt 0:00:16]} Nc8 {[%emt 0:00:39]} 31. Kd1 {[%emt 0:00:36]} Nb6 {[%emt 0:00:11]} 32. Re1 {[%emt 0:00:03]} Bd6 {[%emt 0:00:49]} 33. Rh1 {[%emt 0:00:09]} Kg7 {[%emt 0:00:18]} 34. Bh6+ {[%emt 0:00:03]} Kf7 {[%emt 0:00:02]} 35. Bc1 {[%emt 0:00:05]} Kg7 {[%emt 0:00:06]} 36. Bh6+ {[%emt 0:00:02]} Kf7 {[%emt 0:00:02]} 1/2-1/2

[Event "Moscow Rapid-ch 2018"]
[Site "Moscow"]
[Date "2018.12.08"]
[Round "3"]
[White "Lavrov, Maxim"]
[Black "Girshgorn, Leonid"]
[Result "1-0"]
[ECO "B12"]
[WhiteElo "2387"]
[BlackElo "2038"]
[Annotator "NA"]
[PlyCount "97"]
[EventDate "2018.12.08"]
[EventType "swiss"]
[EventCountry "RUS"]
[SourceTitle "playchess.com"]
[Source "ChessBase"]
[SourceQuality "1"]
[TimeControl "900+10"]

1. e4 {[%emt 0:00:00]} c6 {[%emt 0:00:00]} 2. d4 {[%emt 0:00:00]} d5 {[%emt 0:00:00]} 3. e5 {[%emt 0:00:00]} Bf5 {[%emt 0:00:00]} 4. Nf3 {[%emt 0:00:00]} e6 {[%emt 0:00:00]} 5. Be2 {[%emt 0:00:03]} Nd7 {[%emt 0:00:04]} 6. O-O {[%emt 0:00:03]} h6 {[%emt 0:00:02]} 7. b3 {[%emt 0:00:08]} Ne7 {[%emt 0:00:07]} 8. c4 {[%emt 0:00:13]} g5 {[%emt 0:00:36]} 9. Nc3 {[%emt 0:00:14]} Bg7 {[%emt 0:00:08]} 10. Ba3 {[%emt 0:00:56]} O-O {[%emt 0:01:01]} 11. Bd3 {[%emt 0:00:32]} Bg4 {[%emt 0:01:37]} 12. Re1 {[%emt 0:01:22]} dxc4 {[%emt 0:00:55]} 13. bxc4 {[%emt 0:00:23]} c5 {[%emt 0:00:11]} 14. Be4 {[%emt 0:02:10]} Nc6 {[%emt 0:02:27]} 15. Bxc6 {[%emt 0:01:57]} bxc6 {[%emt 0:00:02]} 16. h3 {[%emt 0:00:03]} Bh5 {[%emt 0:00:45]} 17. Ne4 {[%emt 0:00:52]} Bxf3 {[%emt 0:00:50]} 18. Qxf3 {[%emt 0:00:33]} cxd4 {[%emt 0:01:08]} 19. Nf6+ {[%emt 0:02:27]} Bxf6 {[%emt 0:00:04]} 20. exf6 {[%emt 0:00:08]} Qxf6 {[%emt 0:00:09]} 21. Qxf6 {[%emt 0:00:29]} Nxf6 {[%emt 0:00:01]} 22. Bxf8 {[%emt 0:00:03]} Kxf8 {[%emt 0:00:02]} 23. Rab1 {[%emt 0:00:07]} Ke7 {[%emt 0:00:04]} 24. Rb7+ {[%emt 0:00:10]} Nd7 {[%emt 0:00:01]} 25. c5 {[%emt 0:00:19]} Kd8 {[%emt 0:00:16]} 26. g3 {[%emt 0:00:59]} Kc8 {[%emt 0:01:29]} 27. Rb4 {[%emt 0:02:00]} e5 {[%emt 0:00:09]} 28. f4 {[%emt 0:00:10]} gxf4 {[%emt 0:00:25]} 29. gxf4 {[%emt 0:00:02]} f6 {[%emt 0:00:36]} 30. fxe5 {[%emt 0:00:24]} fxe5 {[%emt 0:00:01]} 31. Rf1 {[%emt 0:00:14]} Kc7 {[%emt 0:00:08]} 32. Rf7 {[%emt 0:00:05]} Rf8 {[%emt 0:00:09]} 33. Rh7 {[%emt 0:00:20]} Rf6 {[%emt 0:00:45]} 34. Ra4 {[%emt 0:00:11]} Rg6+ {[%emt 0:01:31]} 35. Kf1 {[%emt 0:00:09]} Rf6+ {[%emt 0:00:04]} 36. Ke1 {[%emt 0:00:04]} a6 {[%emt 0:00:47]} 37. Rxa6 {[%emt 0:00:09]} Kb7 {[%emt 0:00:01]} 38. Ra4 {[%emt 0:00:13]} Kc8 {[%emt 0:00:27]} 39. Ra8+ {[%emt 0:00:09]} Kb7 {[%emt 0:00:04]} 40. Rd8 {[%emt 0:00:13]} Ka6 {[%emt 0:00:01]} 41. Rdxd7 {[%emt 0:00:19]} Kb5 {[%emt 0:00:02]} 42. Rde7 {[%emt 0:00:11]} Rf5 {[%emt 0:00:01]} 43. Rxh6 {[%emt 0:00:30]} Kxc5 {[%emt 0:00:05]} 44. Rhe6 {[%emt 0:00:31]} Kd5 {[%emt 0:00:03]} 45. a4 {[%emt 0:00:11]} d3 {[%emt 0:01:29]} 46. Kd2 {[%emt 0:00:17]} Ke4 {[%emt 0:00:18]} 47. Rxe5+ {[%emt 0:00:10]} Rxe5 {[%emt 0:00:02]} 48. Rxe5+ {[%emt 0:00:01]} Kxe5 {[%emt 0:00:01]} 49. Kxd3 {[%emt 0:00:02]} 1-0

[Event "Moscow Rapid-ch 2018"]
[Site "Moscow"]
[Date "2018.12.08"]
[Round "3"]
[White "Tsvetkov, Andrey"]
[Black "Zlotnik, Andrey"]
[Result "1-0"]
[ECO "A40"]
[WhiteElo "2338"]
[BlackElo "2092"]
[Annotator "NA"]
[PlyCount "101"]
[EventDate "2018.12.08"]
[EventType "swiss"]
[EventCountry "RUS"]
[SourceTitle "playchess.com"]
[Source "ChessBase"]
[SourceQuality "1"]
[TimeControl "900+10"]

1. d4 {[%emt 0:00:00]} e6 {[%emt 0:00:00]} 2. c4 {[%emt 0:00:00]} c5 {[%emt 0:00:00]} 3. d5 {[%emt 0:00:00]} exd5 {[%emt 0:00:00]} 4. cxd5 {[%emt 0:00:00]} g6 {[%emt 0:00:00]} 5. Nc3 {[%emt 0:00:00]} Bg7 {[%emt 0:00:00]} 6. e4 {[%emt 0:00:00]} d6 {[%emt 0:00:00]} 7. f4 {[%emt 0:00:04]} a6 {[%emt 0:00:08]} 8. Nf3 {[%emt 0:00:11]} Ne7 {[%emt 0:00:07]} 9. a4 {[%emt 0:00:38]} O-O {[%emt 0:00:03]} 10. Be2 {[%emt 0:00:01]} Nd7 {[%emt 0:00:24]} 11. O-O {[%emt 0:00:38]} f5 {[%emt 0:00:16]} 12. Ng5 {[%emt 0:00:29]} Qb6 {[%emt 0:01:20]} 13. Ne6 {[%emt 0:00:15]} Bd4+ {[%emt 0:00:45]} 14. Kh1 {[%emt 0:00:13]} Rf7 {[%emt 0:00:40]} 15. a5 {[%emt 0:01:23]} Qa7 {[%emt 0:00:01]} 16. e5 {[%emt 0:00:14]} dxe5 {[%emt 0:01:01]} 17. d6 {[%emt 0:00:01]} Nc6 {[%emt 0:00:04]} 18. Bc4 {[%emt 0:00:04]} b5 {[%emt 0:01:58]} 19. Bd5 {[%emt 0:02:42]} Nb4 {[%emt 0:00:13]} 20. Bxa8 {[%emt 0:01:10]} Qxa8 {[%emt 0:00:01]} 21. Ng5 {[%emt 0:00:01]} Bb7 {[%emt 0:00:43]} 22. Qe2 {[%emt 0:00:01]} Rf6 {[%emt 0:00:13]} 23. fxe5 {[%emt 0:00:28]} Nxe5 {[%emt 0:00:13]} 24. Bf4 {[%emt 0:00:21]} Nbd3 {[%emt 0:00:45]} 25. Rad1 {[%emt 0:02:32]} b4 {[%emt 0:02:33]} 26. Na4 {[%emt 0:00:19]} h6 {[%emt 0:04:08]} 27. Nh3 {[%emt 0:00:16]} g5 {[%emt 0:01:10]} 28. Nb6 {[%emt 0:00:20]} Bxg2+ {[%emt 0:00:42]} 29. Qxg2 {[%emt 0:00:02]} Qxg2+ {[%emt 0:00:01]} 30. Kxg2 {[%emt 0:00:01]} gxf4 {[%emt 0:00:20]} 31. d7 {[%emt 0:03:17]} Rd6 {[%emt 0:00:01]} 32. Nxf4 {[%emt 0:01:34]} Nxb2 {[%emt 0:00:23]} 33. Rde1 {[%emt 0:00:47]} Nxd7 {[%emt 0:00:13]} 34. Nc8 {[%emt 0:00:01]} Rf6 {[%emt 0:00:26]} 35. Ne7+ {[%emt 0:00:11]} Kh7 {[%emt 0:00:18]} 36. Nfd5 {[%emt 0:00:14]} Rf7 {[%emt 0:00:13]} 37. Nxf5 {[%emt 0:00:37]} Nd3 {[%emt 0:00:22]} 38. Re6 {[%emt 0:00:14]} Bg7 {[%emt 0:00:27]} 39. Rxa6 {[%emt 0:00:53]} c4 {[%emt 0:00:11]} 40. Ra7 {[%emt 0:00:39]} c3 {[%emt 0:00:12]} 41. Nxg7 {[%emt 0:00:41]} Rxg7+ {[%emt 0:00:04]} 42. Kh3 {[%emt 0:00:01]} c2 {[%emt 0:00:53]} 43. Rxd7 {[%emt 0:00:01]} Rxd7 44. Nf6+ Kg6 {[%emt 0:00:03]} 45. Nxd7 {[%emt 0:00:01]} b3 {[%emt 0:00:00]} 46. Nf8+ {[%emt 0:00:34]} Kg7 {[%emt 0:00:30]} 47. Ne6+ {[%emt 0:00:00]} Kg6 {[%emt 0:00:06]} 48. Nd4 {[%emt 0:00:02]} Nf2+ {[%emt 0:00:09]} 49. Kg2 {[%emt 0:00:07]} Nd1 {[%emt 0:00:02]} 50. Nxb3 {[%emt 0:00:03]} Ne3+ {[%emt 0:00:23]} 51. Kf2 {[%emt 0:00:03]} 1-0

[Event "Moscow Rapid-ch 2018"]
[Site "Moscow"]
[Date "2018.12.08"]
[Round "3"]
[White "Dudin, Gleb"]
[Black "Parpiev, Isaak"]
[Result "1-0"]
[ECO "E73"]
[WhiteElo "2303"]
[BlackElo "1406"]
[Annotator "NA"]
[PlyCount "59"]
[EventDate "2018.12.08"]
[EventType "swiss"]
[EventCountry "RUS"]
[SourceTitle "playchess.com"]
[Source "ChessBase"]
[SourceQuality "1"]
[TimeControl "900+10"]

1. c4 {[%emt 0:00:00]} Nf6 {[%emt 0:00:00]} 2. Nc3 {[%emt 0:00:00]} g6 {[%emt 0:00:00]} 3. e4 {[%emt 0:00:09]} d6 {[%emt 0:00:00]} 4. d4 {[%emt 0:00:06]} Bg7 {[%emt 0:00:00]} 5. Be2 {[%emt 0:00:03]} O-O {[%emt 0:00:00]} 6. Bg5 {[%emt 0:00:02]} e5 {[%emt 0:00:14]} 7. dxe5 {[%emt 0:00:05]} dxe5 {[%emt 0:00:20]} 8. Qxd8 {[%emt 0:00:05]} Rxd8 {[%emt 0:00:01]} 9. Nd5 {[%emt 0:01:21]} Nxd5 {[%emt 0:04:17]} 10. Bxd8 {[%emt 0:00:07]} Nb4 {[%emt 0:00:03]} 11. Kd2 {[%emt 0:01:52]} N8c6 {[%emt 0:00:40]} 12. Bg5 {[%emt 0:00:08]} f6 {[%emt 0:02:30]} 13. Be3 {[%emt 0:00:09]} Be6 {[%emt 0:00:30]} 14. a3 {[%emt 0:00:40]} Rd8+ {[%emt 0:00:03]} 15. Kc3 {[%emt 0:00:04]} Na6 {[%emt 0:00:56]} 16. b4 {[%emt 0:00:48]} Nd4 {[%emt 0:00:31]} 17. c5 {[%emt 0:00:24]} f5 {[%emt 0:02:14]} 18. Bd3 {[%emt 0:01:10]} f4 {[%emt 0:01:08]} 19. Bxd4 {[%emt 0:00:02]} exd4+ {[%emt 0:00:33]} 20. Kd2 {[%emt 0:00:07]} Nb8 {[%emt 0:00:16]} 21. Nf3 {[%emt 0:00:06]} Nc6 {[%emt 0:00:05]} 22. Rac1 {[%emt 0:00:08]} h6 {[%emt 0:01:53]} 23. h4 {[%emt 0:00:13]} Ne5 {[%emt 0:00:31]} 24. Nxe5 {[%emt 0:00:05]} Bxe5 {[%emt 0:00:01]} 25. Bc4 {[%emt 0:00:03]} Kf7 {[%emt 0:00:03]} 26. Bxe6+ {[%emt 0:00:03]} Kxe6 {[%emt 0:00:01]} 27. b5 {[%emt 0:00:44]} d3 {[%emt 0:00:59]} 28. Rh3 {[%emt 0:00:33]} Rd4 {[%emt 0:01:31]} 29. Rxd3 {[%emt 0:00:06]} Rxe4 {[%emt 0:00:02]} 30. f3 {[%emt 0:01:59]} 1-0

[Event "Moscow Rapid-ch 2018"]
[Site "Moscow"]
[Date "2018.12.08"]
[Round "3"]
[White "Vasilevich, Irina"]
[Black "Vyrtosu, Natalia"]
[Result "0-1"]
[ECO "A16"]
[WhiteElo "2258"]
[BlackElo "1952"]
[Annotator "NA"]
[PlyCount "60"]
[EventDate "2018.12.08"]
[EventType "swiss"]
[EventCountry "RUS"]
[SourceTitle "playchess.com"]
[Source "ChessBase"]
[SourceQuality "1"]
[TimeControl "900+10"]

1. c4 Nf6 2. Nc3 c6 3. e4 d5 4. e5 d4 5. exf6 dxc3 6. bxc3 gxf6 7. d4 Qa5 8. Bd2 Na6 9. Bd3 Nc7 10. Qf3 Ne6 11. Ne2 Ng5 12. Qh5 Qa4 13. Bxg5 fxg5 14. Qxg5 Be6 15. Rb1 Qxa2 16. O-O Qa6 17. d5 cxd5 18. cxd5 Qxd3 19. Qe5 Bxd5 20. Nd4 Qe4 21. Qg3 Qg6 22. Qh3 Rg8 23. g3 Bg7 24. Nb5 Be5 25. Rfe1 Be4 26. Rbd1 a6 27. Qd7+ Kf8 28. Nc7 Bc6 29. Qd8+ Rxd8 30. Rxd8+ Kg7 0-1